fUSD/lending_fUSD_20260208
["ID","MTS","AMOUNT","RATE_DAILY","PERIOD"]
[404808242,1770583839037,-6728.3003,0.00039184,2]
[404808243,1770583839048,-10000.0,0.00039194,2]
[404808244,1770583839058,-173.54923033,0.000392,2]
[404808245,1770583839067,-8752.05,0.000392,2]
[404808246,1770583839077,-161.265144,0.00039293,20]
[404808247,1770583839087,-478.40694031,0.00039322,2]
[404808248,1770583839096,-543.47,0.000394,30]
[404808249,1770583839106,-539.84175899,0.00039499,13]
[404808250,1770583839115,-1130.65671127,0.000395,2]
[404808251,1770583839125,-178.3283611,0.00039501,2]
[404808252,1770583839134,-1000.0,0.00039573,14]
[404808253,1770583839144,-751.93,0.00039746,2]
[404808254,1770583839154,-500.0,0.00039773,5]
[404808255,1770583839165,-500.0,0.00039773,5]
[404808256,1770583839174,-1000.0,0.00039847,14]
[404808257,1770583839184,-150.0,0.00039875,7]
[404808258,1770583839193,-150.0,0.00039875,7]
[404808259,1770583839203,-150.0,0.00039875,7]
[404808260,1770583839212,-150.0,0.00039875,7]
[404808261,1770583839221,-150.0,0.00039875,7]
[404808262,1770583839231,-150.0,0.00039875,7]
[404808263,1770583839240,-152.06887484,0.00039875,7]
[404808264,1770583839249,-150.0,0.00039875,7]
[404808265,1770583839259,-150.0,0.00039875,7]
[404808266,1770583839268,-150.0,0.00039875,7]
[404808267,1770583839277,-221.6279223,0.00039875,7]
[404808268,1770583839286,-150.0,0.00039875,7]
[404808269,1770583839296,-150.0,0.00039875,7]
[404808270,1770583839305,-150.0,0.00039875,7]
[404808271,1770583839314,-1000.0,0.00039972,2]
[404808272,1770583839324,-150.0,0.00039994,7]
[404808273,1770583839333,-22499.99,0.0004,120]
[404808274,1770583839343,-22500.0,0.0004,120]
[404808275,1770583839353,-152.0,0.0004,120]
[404808276,1770583839363,-154.0,0.0004,120]
[404808277,1770583839372,-679.32896142,0.00040023,15]
[404808278,1770583839382,-150.0,0.00040114,7]
[404808279,1770583839390,-1499.0,0.00040121,14]
[404808280,1770583839399,-150.0,0.00040135,7]
[404808281,1770583839408,-150.0,0.0004017,7]
[404808282,1770583839417,-150.0,0.0004017,7]
[404808283,1770583839427,-1741.73214038,0.00040171,28]
[404808284,1770583839436,-478.40694031,0.00040182,2]
[404808285,1770583839446,-150.0,0.00040191,7]
[404808286,1770583839455,-150.0,0.00040234,7]
[404808287,1770583839465,-150.0,0.00040244,7]
[404808288,1770583839478,-150.0,0.00040277,7]
[404808289,1770583839488,-433.80361693,0.00040321,5]
[404808290,1770583839497,-1006.85499541,0.00040321,5]
[404808291,1770583839513,-150.0,0.00040353,7]
[404808292,1770583839522,-22500.0,0.00040375,120]
[404808293,1770583839533,-150.0,0.00040396,7]
[404808294,1770583839543,-150.0,0.00040406,2]
[404808295,1770583839552,-150.0,0.00040465,7]
[404808296,1770583839561,-150.0,0.00040465,7]
[404808297,1770583839571,-150.0,0.00040473,7]
[404808298,1770583839580,-150.0,0.00040507,7]
[404808299,1770583839589,-150.0,0.00040593,7]
[404808300,1770583839600,-150.0,0.00040613,7]
[404808301,1770583839611,-614.18,0.00040631,2]
[404808302,1770583839621,-640.5,0.00040644,60]
[404808303,1770583839634,-150.0,0.00040656,7]
[404808304,1770583839644,-150.0,0.0004068,7]
[404808305,1770583839656,-8752.05,0.000407,2]
[404808306,1770583839666,-150.0,0.00040713,7]
[404808307,1770583839677,-20844.04,0.0004075,120]
[404808308,1770583839687,-150.0,0.00040761,7]
[404808309,1770583839697,-150.0,0.00040761,7]
[404808310,1770583839708,-152.0,0.000408,120]
[404808311,1770583839721,-150.0,0.00040824,7]
[404808312,1770583839731,-150.0,0.00040832,7]
[404808313,1770583839742,-8195.0,0.00040834,5]
[404808314,1770583839752,-150.0,0.00040917,7]
[404808315,1770583839763,-150.0,0.00040952,7]
[404808316,1770583839773,-150.0,0.00040982,7]
[404808317,1770583839784,-154.0,0.00041,120]
[404808318,1770583839793,-478.40694031,0.00041042,2]
[404808319,1770583839803,-150.0,0.00041056,7]
[404808320,1770583839814,-150.0,0.00041056,7]
[404808321,1770583839823,-679.32896142,0.00041067,15]
[404808322,1770583839832,-150.0,0.00041072,7]
[404808323,1770583839842,-150.0,0.00041083,7]
[404808324,1770583839851,-363.77058182,0.00041095,120]
[404808325,1770583839861,-543.47,0.000411,30]
[404808326,1770583839871,-300.0,0.00041115,30]
[404808327,1770583839880,-666.0,0.00041115,30]
[404808328,1770583839890,-751.93,0.00041116,2]
[404808329,1770583839899,-300.0,0.00041136,30]
[404808330,1770583839908,-1335.0,0.00041137,2]
[404808331,1770583839917,-616.0,0.00041137,2]
[404808332,1770583839927,-3484.0,0.00041137,2]
[404808333,1770583839936,-6585.0,0.00041137,2]
[404808334,1770583839945,-412.0,0.00041137,2]
[404808335,1770583839954,-150.0,0.0004114,30]
[404808336,1770583839963,-150.0,0.00041178,30]
[404808337,1770583839973,-150.0,0.00041192,30]
[404808338,1770583839983,-150.0,0.00041311,30]
[404808339,1770583839992,-300.0,0.00041341,30]
[404808340,1770583840004,-150.0,0.00041351,30]
[404808341,1770583840013,-150.0,0.00041351,30]
[404808342,1770583840023,-150.0,0.00041351,30]
[404808343,1770583840033,-150.0,0.00041351,30]
[404808344,1770583840043,-150.0,0.00041431,30]
[404808345,1770583840065,-150.0,0.00041438,30]
[404808346,1770583840075,-150.0,0.00041457,30]
[404808347,1770583840084,-150.0,0.00041486,30]
[404808348,1770583840094,-1741.73214038,0.00041514,28]
[404808349,1770583840103,-150.0,0.00041551,30]
[404808350,1770583840113,-152.24,0.00041564,120]
[404808351,1770583840122,-152.0,0.000416,120]
[404808352,1770583840132,-150.0,0.00041647,30]
[404808353,1770583840142,-150.0,0.00041647,30]
[404808354,1770583840152,-152.24,0.00041664,120]
[404808355,1770583840162,-150.0,0.00041671,30]
[404808356,1770583840171,-150.0,0.00041699,30]
[404808357,1770583840180,-11361.0,0.000417,117]
[404808358,1770583840190,-150.0,0.00041721,30]
[404808359,1770583840200,-150.0,0.00041773,30]
[404808360,1770583840210,-150.0,0.0004179,30]
[404808361,1770583840220,-539.84175899,0.00041849,16]
[404808362,1770583840231,-150.0,0.00041888,30]
[404808363,1770583840241,-2000.0,0.000419,2]
[404808364,1770583840252,-478.40694031,0.00041901,2]
[404808365,1770583840262,-150.0,0.0004191,30]
[404808366,1770583840272,-150.0,0.00041942,30]
[404808367,1770583840282,-150.0,0.00041942,30]
[404808368,1770583840292,-150.0,0.00041959,30]
[404808369,1770583840302,-213.75126474,0.00042,2]
[404808370,1770583840311,-150.0,0.0004203,30]
[404808371,1770583840320,-150.0,0.0004209,30]
[404808372,1770583840329,-150.0,0.0004209,30]
[404808373,1770583840338,-150.0,0.0004209,30]
[404808374,1770583840347,-154.0,0.000421,120]
[404808375,1770583840357,-679.32896142,0.0004211,15]
[404808376,1770583840366,-150.0,0.0004215,30]
[404808377,1770583840376,-150.0,0.0004222,30]
[404808378,1770583840386,-150.0,0.00042237,30]
[404808379,1770583840396,-150.0,0.00042237,30]
[404808380,1770583840407,-150.0,0.00042269,30]
[404808381,1770583840417,-150.0,0.00042291,30]
[404808382,1770583840428,-1882.71939863,0.00042298,15]
[404808383,1770583840439,-150.0,0.00042389,30]
[404808384,1770583840449,-152.0,0.000424,120]
[404808385,1770583840459,-150.0,0.00042406,30]
[404808386,1770583840472,-150.0,0.00042426,120]
[404808387,1770583840482,-150.0,0.00042459,30]
[404808388,1770583840492,-20000.0,0.00042466,120]
[404808389,1770583840503,-150.0,0.00042481,30]
[404808390,1770583840516,-169.75030081,0.00042493,30]
[404808391,1770583840527,-150.0,0.00042509,30]
[404808392,1770583840538,-150.0,0.00042533,30]
[404808393,1770583840548,-150.0,0.00042533,30]
[404808394,1770583840765,-614.18,0.00042565,2]
[404808395,1770583840775,-827.0,0.00042576,16]
[404808396,1770583840785,-200.0,0.00042582,2]
[404808397,1770583840794,-150.0,0.00042629,30]
[404808398,1770583840805,-164.0,0.00042653,16]
[404808399,1770583840814,-539.29236495,0.00042661,60]
[404808400,1770583840823,-150.0,0.00042694,30]
[404808401,1770583840835,-150.0,0.00042723,30]
[404808402,1770583840846,-200.0,0.00042729,2]
[404808403,1770583840858,-800.0,0.0004274,7]
[404808404,1770583840868,-150.0,0.00042741,30]
[404808405,1770583840879,-150.0,0.00042748,30]
[404808406,1770583840893,-478.40694031,0.00042761,2]
[404808407,1770583840902,-150.0,0.00042828,30]
[404808408,1770583840912,-150.0,0.00042828,30]
[404808409,1770583840921,-150.0,0.00042828,30]
[404808410,1770583840930,-150.0,0.00042828,30]
[404808411,1770583840943,-48914.0,0.00042846,30]
[404808412,1770583840952,-150.0,0.00042868,30]
[404808413,1770583840961,-15357.3013205,0.000429,120]
[404808414,1770583840970,-4555.29193256,0.00042931,7]
[404808415,1770583840980,-169.75030081,0.00042959,30]
[404808416,1770583840989,-150.0,0.00042988,30]
[404808417,1770583840998,-212.0,0.00043,30]
[404808418,1770583841008,-10220.85379339,0.00043,120]
[404808419,1770583841018,-150.0,0.00043002,30]
[404808420,1770583841028,-150.0,0.00043039,30]
[404808421,1770583841038,-150.0,0.00043097,30]
[404808422,1770583841048,-154.0,0.000431,120]
[404808423,1770583841058,-150.0,0.00043108,30]
[404808424,1770583841067,-150.0,0.00043124,30]
[404808425,1770583841077,-150.0,0.00043124,30]
[404808426,1770583841086,-509.0,0.00043146,14]
[404808427,1770583841096,-679.32896142,0.00043154,15]
[404808428,1770583841106,-150.0,0.00043197,30]
[404808429,1770583841117,-152.0,0.000432,120]
[404808430,1770583841130,-150.0,0.00043227,30]
[404808431,1770583841140,-1882.71939863,0.00043248,15]
[404808432,1770583841150,-150.0,0.00043263,30]
[404808433,1770583841160,-2827.0,0.00043277,16]
[404808434,1770583841170,-2827.0,0.00043286,16]
[404808435,1770583841180,-48914.0,0.00043288,30]
[404808436,1770583841189,-840.0,0.00043298,16]
[404808437,1770583841198,-200.0,0.00043336,2]
[404808438,1770583841208,-150.0,0.00043347,30]
[404808439,1770583841218,-150.0,0.00043356,30]
[404808440,1770583841228,-200.0,0.00043368,2]
[404808441,1770583841238,-152.52520712,0.000434,120]
[404808442,1770583841248,-150.0,0.00043419,30]
[404808443,1770583841257,-150.0,0.00043419,30]
[404808444,1770583841267,-169.75030081,0.00043425,30]
[404808445,1770583841277,-164.0,0.00043444,16]
[404808446,1770583841287,-150.0,0.00043467,30]
[404808447,1770583841296,-636.0,0.00043467,120]
[404808448,1770583841306,-150.0,0.00043499,30]
[404808449,1770583841316,-2699.0,0.00043516,16]
[404808450,1770583841326,-150.0,0.00043523,30]
[404808451,1770583841340,-150.0,0.00043567,30]
[404808452,1770583841350,-150.0,0.00043587,30]
[404808453,1770583841360,-8752.05,0.000436,2]
[404808454,1770583841369,-2827.0,0.00043606,16]
[404808455,1770583841378,-164.0,0.00043606,16]
[404808456,1770583841388,-196.0,0.00043606,16]
[404808457,1770583841398,-840.0,0.00043608,16]
[404808458,1770583841408,-478.40694031,0.0004362,2]
[404808459,1770583841418,-150.0,0.00043656,30]
[404808460,1770583841427,-1055.36341633,0.00043656,30]
[404808461,1770583841437,-150.0,0.00043656,30]
[404808462,1770583841446,-3240.89898856,0.00043656,30]
[404808463,1770583841456,-150.0,0.00043656,30]
[404808464,1770583841467,-748.98175907,0.00043656,30]
[404808465,1770583841478,-200.0,0.00043659,2]
[404808466,1770583841488,-150.0,0.00043672,30]
[404808467,1770583841498,-150.0,0.00043706,30]
[404808468,1770583841509,-150.0,0.00043714,30]
[404808469,1770583841518,-150.0,0.00043714,30]
[404808470,1770583841528,-48914.0,0.00043729,30]
[404808471,1770583841538,-1417.7322,0.00043735,2]
[404808472,1770583841549,-1000.0,0.00043735,2]
[404808473,1770583841560,-150.0,0.00043784,30]
[404808474,1770583841569,-25000.0,0.00043791,15]
[404808475,1770583841579,-25000.0,0.000438,15]
[404808476,1770583841589,-25000.0,0.00043809,15]
[404808477,1770583841599,-25000.0,0.00043817,15]
[404808478,1770583841608,-150.0,0.00043826,30]
[404808479,1770583841618,-25000.0,0.00043826,15]
[404808480,1770583841627,-500.0,0.00043835,120]
[404808481,1770583841636,-500.0,0.00043835,120]
[404808482,1770583841646,-500.0,0.00043835,120]
[404808483,1770583841657,-500.0,0.00043835,120]
[404808484,1770583841666,-539.40911628,0.00043835,120]
[404808485,1770583841677,-500.0,0.00043835,120]
[404808486,1770583841686,-500.0,0.00043835,120]
[404808487,1770583841696,-541.79548207,0.00043835,120]
[404808488,1770583841707,-642.11007679,0.00043835,120]
[404808489,1770583841716,-500.0,0.00043835,120]
[404808490,1770583841726,-519.67,0.00043835,120]
[404808491,1770583841741,-500.0,0.00043835,120]
[404808492,1770583841752,-309.39236467,0.00043835,120]
[404808493,1770583841763,-527.40701074,0.00043835,120]
[404808494,1770583841774,-632.27138052,0.00043835,120]
[404808495,1770583841784,-500.0,0.00043835,120]
[404808496,1770583841794,-587.28640187,0.00043835,120]
[404808497,1770583841803,-569.88560542,0.00043835,120]
[404808498,1770583841814,-500.0,0.00043835,120]
[404808499,1770583841824,-500.0,0.00043835,120]
[404808500,1770583841834,-500.0,0.00043835,120]
[404808501,1770583841845,-508.1886056,0.00043835,120]
[404808502,1770583841854,-500.0,0.00043835,120]
[404808503,1770583841864,-469.15561681,0.00043835,120]
[404808504,1770583841874,-25000.0,0.00043835,15]
[404808505,1770583841883,-1999.0,0.00043835,120]
[404808506,1770583841894,-500.0,0.00043835,120]
[404808507,1770583841904,-506.61615214,0.00043835,120]
[404808508,1770583841914,-426.49097965,0.00043835,120]
[404808509,1770583841924,-500.0,0.00043835,120]
[404808510,1770583841934,-540.32254068,0.00043835,120]
[404808511,1770583841944,-500.0,0.00043835,120]
[404808512,1770583841953,-500.0,0.00043835,120]
[404808513,1770583841964,-500.0,0.00043835,120]
[404808514,1770583841975,-512.1090984,0.00043835,120]
[404808515,1770583841985,-500.0,0.00043835,120]
[404808516,1770583841994,-500.0,0.00043835,120]
[404808517,1770583842004,-366.52,0.00043835,120]
[404808518,1770583842013,-508.00612616,0.00043835,120]
[404808519,1770583842023,-500.0,0.00043835,120]
[404808520,1770583842033,-156.08,0.00043835,120]
[404808521,1770583842042,-516.29400781,0.00043835,120]
[404808522,1770583842052,-511.63126456,0.00043835,120]
[404808523,1770583842062,-512.67709021,0.00043835,120]
[404808524,1770583842071,-500.0,0.00043835,120]
[404808525,1770583842081,-237.88465334,0.00043835,120]
[404808526,1770583842090,-633.28314932,0.00043835,120]
[404808527,1770583842100,-500.0,0.00043835,120]
[404808528,1770583842110,-500.0,0.00043835,60]
[404808529,1770583842120,-500.0,0.00043835,60]
[404808530,1770583842129,-500.0,0.00043835,60]
[404808531,1770583842140,-500.0,0.00043835,60]
[404808532,1770583842152,-500.0,0.00043835,60]
[404808533,1770583842161,-500.0,0.00043835,60]
[404808534,1770583842171,-500.0,0.00043835,60]
[404808535,1770583842180,-621.82,0.00043835,120]
[404808536,1770583842190,-191.08972978,0.00043835,120]
[404808537,1770583842200,-500.0,0.00043835,120]
[404808538,1770583842209,-197.29607274,0.00043835,120]
[404808539,1770583842219,-500.0,0.00043835,120]
[404808540,1770583842229,-500.0,0.00043835,120]
[404808541,1770583842238,-500.0,0.00043835,120]
[404808542,1770583842248,-527.3580023,0.00043835,120]
[404808543,1770583842257,-500.0,0.00043835,120]
[404808544,1770583842267,-500.0,0.00043835,120]
[404808545,1770583842277,-500.0,0.00043835,120]
[404808546,1770583842286,-500.0,0.00043835,120]
[404808547,1770583842296,-500.0,0.00043835,120]
[404808548,1770583842306,-500.0,0.00043835,120]
[404808549,1770583842316,-500.0,0.00043835,120]
[404808550,1770583842325,-551.19137094,0.00043835,120]
[404808551,1770583842335,-500.0,0.00043835,120]
[404808552,1770583842346,-500.0,0.00043835,120]
[404808553,1770583842357,-500.0,0.00043835,120]
[404808554,1770583842368,-500.0,0.00043835,120]
[404808555,1770583842379,-500.0,0.00043835,120]
[404808556,1770583842390,-500.0,0.00043835,2]
[404808557,1770583842400,-500.0,0.00043835,2]
[404808558,1770583842412,-500.0,0.00043835,2]
[404808559,1770583842421,-300.090438,0.00043842,119]
[404808560,1770583842433,-150.0,0.00043873,10]
[404808561,1770583842443,-150.0,0.00043902,30]
[404808562,1770583842453,-200.0,0.00043925,2]
[404808563,1770583842465,-150.0,0.00043936,30]
[404808564,1770583842479,-150.0,0.00043946,30]
[404808565,1770583842490,-150.0,0.00043989,30]
[404808566,1770583842500,-152.0,0.00044,120]
[404808567,1770583842511,-500.0,0.00044,120]
[404808568,1770583842522,-150.0,0.0004401,30]
[404808569,1770583842535,-150.0,0.0004401,30]
[404808570,1770583842546,-150.0,0.00044044,30]
[404808571,1770583842556,-150.0,0.00044066,30]
[404808572,1770583842566,-154.0,0.000441,120]
[404808573,1770583842576,-151.0,0.00044134,120]
[404808574,1770583842585,-1335.0,0.00044137,2]
[404808575,1770583842596,-616.0,0.00044137,2]
[404808576,1770583842608,-3484.0,0.00044137,2]
[404808577,1770583842620,-6585.0,0.00044137,2]
[404808578,1770583842630,-412.0,0.00044137,2]
[404808579,1770583842640,-48914.0,0.00044171,30]
[404808580,1770583842650,-500.0,0.00044171,120]
[404808581,1770583842659,-500.0,0.00044171,120]
[404808582,1770583842669,-500.0,0.00044171,120]
[404808583,1770583842680,-500.0,0.00044171,120]
[404808584,1770583842690,-500.0,0.00044171,120]
[404808585,1770583842700,-500.0,0.00044171,120]
[404808586,1770583842710,-500.0,0.00044171,120]
[404808587,1770583842721,-500.0,0.00044171,120]
[404808588,1770583842731,-500.0,0.00044171,120]
[404808589,1770583842743,-500.0,0.00044171,120]
[404808590,1770583842753,-500.0,0.00044171,120]
[404808591,1770583842764,-500.0,0.00044171,120]
[404808592,1770583842776,-500.0,0.00044171,120]
[404808593,1770583842786,-500.0,0.00044171,120]
[404808594,1770583842797,-500.0,0.00044171,120]
[404808595,1770583842808,-500.0,0.00044171,120]
[404808596,1770583842819,-500.0,0.00044171,120]
[404808597,1770583842828,-500.0,0.00044171,120]
[404808598,1770583842838,-500.0,0.00044171,120]
[404808599,1770583842848,-500.0,0.00044171,120]
[404808601,1770583842857,-500.0,0.00044171,120]
[404808602,1770583842867,-500.0,0.00044171,120]
[404808603,1770583842877,-500.0,0.00044171,120]
[404808604,1770583842886,-500.0,0.00044171,120]
[404808605,1770583842897,-500.0,0.00044171,120]
[404808606,1770583842907,-500.0,0.00044171,120]
[404808607,1770583842917,-500.0,0.00044171,120]
[404808608,1770583842928,-500.0,0.00044171,120]
[404808609,1770583842939,-500.0,0.00044171,120]
[404808610,1770583842950,-500.0,0.00044171,120]
[404808611,1770583842962,-500.0,0.00044171,120]
[404808612,1770583842972,-500.0,0.00044171,120]
[404808613,1770583842982,-500.0,0.00044171,120]
[404808614,1770583842993,-500.0,0.00044171,120]
[404808615,1770583843003,-500.0,0.00044171,120]
[404808616,1770583843013,-500.0,0.00044171,120]
[404808617,1770583843023,-500.0,0.00044171,120]
[404808618,1770583843032,-500.0,0.00044171,120]
[404808619,1770583843043,-500.0,0.00044171,120]
[404808620,1770583843053,-500.0,0.00044171,120]
[404808621,1770583843063,-500.0,0.00044171,120]
[404808622,1770583843074,-500.0,0.00044171,120]
[404808623,1770583843084,-500.0,0.00044171,120]
[404808624,1770583843094,-500.0,0.00044171,120]
[404808625,1770583843104,-500.0,0.00044171,120]
[404808626,1770583843115,-500.0,0.00044171,120]
[404808627,1770583843124,-500.0,0.00044171,120]
[404808628,1770583843134,-500.0,0.00044171,120]
[404808629,1770583843144,-500.0,0.00044171,120]
[404808630,1770583843153,-500.0,0.00044171,120]
[404808631,1770583843162,-500.0,0.00044171,120]
[404808632,1770583843172,-500.0,0.00044171,120]
[404808633,1770583843182,-500.0,0.00044171,120]
[404808634,1770583843191,-500.0,0.00044171,120]
[404808635,1770583843201,-500.0,0.00044171,120]
[404808636,1770583843210,-500.0,0.00044171,120]
[404808637,1770583843220,-500.0,0.00044171,120]
[404808638,1770583843229,-500.0,0.00044171,120]
[404808639,1770583843238,-500.0,0.00044171,120]
[404808640,1770583843247,-500.0,0.00044171,120]
[404808641,1770583843256,-500.0,0.00044171,120]
[404808642,1770583843266,-500.0,0.00044171,120]
[404808643,1770583843275,-500.0,0.00044171,120]
[404808644,1770583843284,-500.0,0.00044171,120]
[404808645,1770583843292,-500.0,0.00044171,120]
[404808646,1770583843302,-500.0,0.00044171,120]
[404808647,1770583843319,-500.0,0.00044171,120]
[404808648,1770583843330,-500.0,0.00044171,120]
[404808649,1770583843339,-500.0,0.00044171,120]
[404808650,1770583843348,-500.0,0.00044171,120]
[404808651,1770583843358,-500.0,0.00044171,120]
[404808652,1770583843367,-500.0,0.00044171,120]
[404808653,1770583843376,-500.0,0.00044171,120]
[404808654,1770583843385,-500.0,0.00044171,120]
[404808655,1770583843395,-500.0,0.00044171,120]
[404808656,1770583843404,-500.0,0.00044171,120]
[404808657,1770583843414,-500.0,0.00044171,120]
[404808658,1770583843423,-500.0,0.00044171,120]
[404808659,1770583843433,-500.0,0.00044171,120]
[404808660,1770583843443,-500.0,0.00044171,120]
[404808661,1770583843452,-500.0,0.00044171,120]
[404808662,1770583843462,-500.0,0.00044171,120]
[404808663,1770583843475,-500.0,0.00044171,120]
[404808664,1770583843485,-500.0,0.00044171,120]
[404808665,1770583843495,-500.0,0.00044171,120]
[404808666,1770583843505,-500.0,0.00044171,120]
[404808667,1770583843515,-731.0,0.00044171,120]
[404808668,1770583843525,-150.0,0.00044185,30]
[404808669,1770583843534,-154.247552,0.00044186,120]
[404808670,1770583843546,-1882.71939863,0.00044198,15]
[404808671,1770583843555,-178.3283611,0.00044198,120]
[404808672,1770583843565,-679.32896142,0.00044198,15]
[404808673,1770583843575,-539.84175899,0.00044198,19]
[404808674,1770583843585,-1130.65671127,0.00044199,2]
[404808675,1770583843595,-150.0,0.000442,73]
[404808676,1770583843605,-150.0,0.000442,2]
[404808677,1770583843614,-265.06963232,0.00044259,8]
[404808678,1770583843623,-250.0,0.0004427,3]
[404808679,1770583843633,-151.0,0.00044296,120]
[404808680,1770583843643,-152.797718,0.00044298,30]
[404808681,1770583843652,-151.0,0.00044298,120]
[404808682,1770583843661,-151.0,0.00044298,120]
[404808683,1770583843671,-167.106546,0.00044298,120]
[404808684,1770583843680,-300.0,0.00044298,5]
[404808685,1770583843689,-300.0,0.00044298,5]
[404808686,1770583843699,-300.0,0.00044298,5]
[404808687,1770583843708,-300.0,0.00044298,5]
[404808688,1770583843717,-300.0,0.00044298,5]
[404808689,1770583843727,-151.0,0.00044298,120]
[404808690,1770583843736,-151.0,0.00044298,120]
[404808691,1770583843746,-151.0,0.00044298,120]
[404808692,1770583843755,-151.0,0.00044298,120]
[404808693,1770583843765,-151.0,0.00044298,120]
[404808694,1770583843774,-151.0,0.00044298,120]
[404808695,1770583843784,-227.160072,0.00044298,120]
[404808696,1770583843794,-151.0,0.00044298,120]
[404808697,1770583843803,-151.0,0.00044298,120]
[404808698,1770583843812,-151.0,0.00044298,120]
[404808699,1770583843822,-151.0,0.00044298,120]
[404808700,1770583843832,-151.0,0.00044298,120]
[404808702,1770583843842,-151.0,0.00044298,120]
[404808703,1770583843851,-151.0,0.00044298,120]
[404808704,1770583843860,-151.0,0.00044298,120]
[404808705,1770583843869,-151.0,0.00044298,120]
[404808706,1770583843879,-151.0,0.00044298,120]
[404808707,1770583843888,-151.0,0.00044298,120]
[404808709,1770583843898,-151.0,0.00044298,120]
[404808711,1770583843908,-151.0,0.00044298,120]
[404808712,1770583843918,-151.0,0.00044298,120]
[404808714,1770583843927,-151.0,0.00044298,120]
[404808716,1770583843937,-151.0,0.00044298,120]
[404808718,1770583843946,-151.0,0.00044298,120]
[404808719,1770583843957,-158.360596,0.00044298,120]
[404808720,1770583843968,-151.0,0.00044298,120]
[404808721,1770583843979,-151.0,0.00044298,120]
[404808722,1770583843990,-185.192251,0.00044298,120]
[404808723,1770583843999,-151.0,0.00044298,120]
[404808724,1770583844009,-151.0,0.00044298,120]
[404808725,1770583844018,-151.0,0.00044298,120]
[404808726,1770583844028,-151.0,0.00044298,120]
[404808727,1770583844040,-151.0,0.00044298,120]
[404808728,1770583844052,-151.0,0.00044298,120]
[404808729,1770583844062,-151.0,0.00044298,120]
[404808730,1770583844071,-151.0,0.00044298,120]
[404808731,1770583844081,-151.0,0.00044298,120]
[404808732,1770583844090,-168.875348,0.00044298,120]
[404808733,1770583844100,-151.0,0.00044298,120]
[404808734,1770583844109,-151.0,0.00044298,120]
[404808735,1770583844119,-151.0,0.00044298,120]
[404808736,1770583844129,-151.0,0.00044298,120]
[404808737,1770583844139,-151.0,0.00044298,120]
[404808738,1770583844149,-151.0,0.00044298,120]
[404808739,1770583844158,-151.0,0.00044298,120]
[404808740,1770583844169,-151.0,0.00044298,120]
[404808741,1770583844180,-224.218548,0.00044298,120]
[404808742,1770583844190,-151.0,0.00044298,120]
[404808743,1770583844200,-151.0,0.00044298,120]
[404808744,1770583844212,-274.978908,0.00044298,120]
[404808745,1770583844222,-151.0,0.00044298,120]
[404808746,1770583844231,-151.0,0.00044298,120]
[404808747,1770583844242,-151.0,0.00044298,120]
[404808748,1770583844253,-157.2844,0.00044298,120]